bitfinex-derivatives/quotes_BTCF0:USTF0_20251103
["timestamp","ask_amount","ask_price","bid_price","bid_amount"]
[1762143248179,0.04594,107780.0,107770.0,0.1494058]
[1762143248359,0.002,107780.0,107770.0,0.21618536]
[1762143248564,0.02347,107780.0,107770.0,0.21618536]
[1762143249275,0.002,107780.0,107770.0,0.21618536]
[1762143249771,0.16199,107790.0,107770.0,0.1494058]
[1762143250073,0.18346,107790.0,107780.0,0.12322373]
[1762143250273,0.20593,107790.0,107780.0,0.12322373]
[1762143251974,0.20593,107790.0,107780.0,0.05661]
[1762143252275,0.2193,107790.0,107780.0,0.05661]
[1762143252667,0.2193,107790.0,107780.0,0.04365]
[1762143252976,0.2213,107790.0,107780.0,0.04365]
[1762143254278,0.20793,107790.0,107780.0,0.1493973]
[1762143255174,0.20793,107790.0,107780.0,0.05661]
[1762143255569,0.21976,107790.0,107780.0,0.04365]
[1762143256368,0.21976,107790.0,107780.0,0.0568]
[1762143257977,0.20593,107790.0,107780.0,0.0568]
[1762143258480,0.20793,107790.0,107780.0,0.0568]
[1762143258984,0.20593,107790.0,107780.0,0.0568]
[1762143260271,0.21976,107790.0,107780.0,0.0568]
[1762143261781,0.21976,107790.0,107780.0,0.12341373]
[1762143262487,0.21976,107790.0,107780.0,0.11026373]
[1762143262985,0.21976,107790.0,107780.0,0.0568]
[1762143263291,0.16199,107790.0,107780.0,0.3298845]
[1762143263587,0.18509,107790.0,107780.0,0.3298845]
[1762143263789,0.20669,107790.0,107780.0,0.2370972]
[1762143263987,0.20669,107790.0,107780.0,0.12341373]
[1762143264791,0.16199,107790.0,107780.0,0.4765478]
[1762143264983,0.18509,107790.0,107780.0,0.49844347]
[1762143265182,0.20761,107790.0,107780.0,0.49844347]
[1762143266392,0.16199,107790.0,107780.0,0.6568444]
[1762143266694,0.16199,107790.0,107780.0,0.67262265]
[1762143266986,0.18404,107790.0,107780.0,0.59023067]
[1762143267187,0.20656,107790.0,107780.0,0.59023067]
[1762143267385,0.13048,107790.0,107780.0,0.59023067]
[1762143267588,0.13048,107790.0,107780.0,0.49844347]
[1762143267986,0.13048,107790.0,107780.0,0.56611822]
[1762143268387,0.13048,107790.0,107780.0,0.65890542]
[1762143268585,0.04457,107790.0,107780.0,0.56611822]
[1762143269189,0.02205,107790.0,107780.0,0.56511822]
[1762143269392,0.04457,107790.0,107780.0,0.56511822]
[1762143269594,0.04457,107790.0,107780.0,0.45143475]
[1762143269786,0.04457,107790.0,107780.0,0.45043475]
[1762143270088,0.12064,107790.0,107780.0,0.45043475]
[1762143270290,0.13363,107790.0,107780.0,0.11032475]
[1762143270486,0.21953,107790.0,107780.0,0.11032475]
[1762143271196,0.21953,107790.0,107780.0,0.12426475]
[1762143271495,0.21953,107790.0,107780.0,0.05759]
[1762143271698,0.33321347,107790.0,107780.0,0.19276335]
[1762143271993,0.33321347,107790.0,107780.0,0.02189]
[1762143272194,0.33321347,107790.0,107780.0,0.11180431]
[1762143273393,0.33321347,107790.0,107780.0,0.11183936]
[1762143273593,0.21953,107790.0,107780.0,0.11183936]
[1762143273895,0.21953,107790.0,107780.0,0.04508]
[1762143274295,0.21953,107790.0,107780.0,0.1378673]
[1762143274995,0.21953,107790.0,107780.0,0.04508]
[1762143275297,0.05756,107780.0,107770.0,0.12772198]
[1762143275691,0.05756,107780.0,107770.0,0.14166198]
[1762143275995,0.04457,107780.0,107770.0,0.14166198]
[1762143276590,0.04457,107780.0,107770.0,0.06027]
[1762143276893,0.05756,107780.0,107770.0,0.14373341]
[1762143277390,0.05756,107780.0,107770.0,0.08546341]
[1762143277391,0.77124347,107780.0,107770.0,0.08546341]
[1762143277996,0.77124347,107780.0,107770.0,0.08446341]
[1762143278290,0.05756,107770.0,107760.0,0.11212019]
[1762143278492,0.49800347,107770.0,107760.0,0.12606019]
[1762143278697,0.38432,107770.0,107760.0,0.12606019]
[1762143278894,0.04457,107770.0,107760.0,0.33254826]
[1762143279089,0.04457,107770.0,107760.0,0.21886479]
[1762143279290,0.04457,107770.0,107760.0,0.12606019]
[1762143279492,0.04457,107770.0,107760.0,0.12706019]
[1762143280000,0.04457,107770.0,107760.0,0.21986479]
[1762143280394,0.04457,107770.0,107760.0,0.33454826]
[1762143281195,0.04457,107770.0,107760.0,0.66130826]
[1762143281696,0.37133,107780.0,107770.0,0.05927]
[1762143281891,0.04457,107780.0,107770.0,0.05927]
[1762143282291,0.04457,107780.0,107770.0,0.1871767]
[1762143283502,0.20656,107780.0,107770.0,0.1871767]
[1762143284299,0.3474567,107780.0,107770.0,0.04533]
[1762143284701,0.18404,107780.0,107770.0,0.2799726]
[1762143284895,0.20656,107780.0,107770.0,0.25396689]
[1762143285096,0.3472867,107780.0,107770.0,0.11212019]
[1762143285406,0.3472867,107780.0,107770.0,0.04533]
[1762143286004,0.05606,107770.0,107760.0,0.45219019]
[1762143286204,0.05606,107770.0,107760.0,0.58009689]
[1762143286410,0.04324,107770.0,107760.0,0.58009689]
[1762143286710,0.1711467,107770.0,107760.0,0.3854]
[1762143286911,0.1711467,107770.0,107760.0,0.5133067]
[1762143286912,0.04324,107770.0,107760.0,0.5133067]
[1762143287104,0.05606,107770.0,107760.0,0.5133067]
[1762143287410,0.05606,107770.0,107760.0,0.3874]
[1762143287411,0.1839667,107770.0,107760.0,0.3874]
[1762143287711,0.05606,107770.0,107760.0,0.5153067]
[1762143288098,0.04324,107770.0,107760.0,0.6081135]
[1762143289012,0.04324,107770.0,107760.0,0.67490369]
[1762143289806,0.04324,107770.0,107760.0,0.58209689]
[1762143292010,0.04324,107770.0,107760.0,0.67490329]
[1762143292211,0.02108,107770.0,107760.0,0.67490329]
[1762143292909,0.02108,107770.0,107760.0,0.58209689]
[1762143293114,0.04324,107770.0,107760.0,0.58209689]
[1762143293316,0.04324,107770.0,107760.0,0.67490379]
[1762143293608,0.02108,107770.0,107760.0,0.67490379]
[1762143293806,0.20523,107780.0,107770.0,0.05733]
[1762143294008,0.16199,107780.0,107770.0,0.278035]
[1762143294209,0.18307,107780.0,107770.0,0.25202689]
[1762143294510,0.20523,107780.0,107770.0,0.25202689]
[1762143295605,0.18307,107780.0,107770.0,0.34482509]
[1762143295910,0.20523,107780.0,107770.0,0.21691839]
[1762143296213,0.20523,107780.0,107770.0,0.25202689]
[1762143297209,0.20523,107780.0,107770.0,0.34482269]
[1762143297416,0.16199,107780.0,107770.0,0.34482269]
[1762143298112,0.18307,107780.0,107770.0,0.25202689]
[1762143298417,0.20523,107780.0,107770.0,0.25202689]
[1762143299221,0.20523,107780.0,107770.0,0.34582219]
[1762143299408,0.20523,107780.0,107770.0,0.25302689]
[1762143299612,0.20523,107780.0,107770.0,0.1862367]
[1762143300317,0.20523,107780.0,107770.0,0.34482219]
[1762143300318,0.16199,107780.0,107770.0,0.34482219]
[1762143300526,0.16199,107780.0,107770.0,0.36482219]
[1762143300821,0.12699,107780.0,107770.0,0.36482219]
[1762143301024,0.12699,107780.0,107770.0,0.529992]
[1762143301224,0.12699,107780.0,107770.0,0.61345541]
[1762143301519,0.05699,107780.0,107770.0,0.74136211]
[1762143301716,0.01709547,107790.0,107780.0,0.0927865]
[1762143301922,0.01709547,107790.0,107780.0,0.76181575]
[1762143302421,0.01709547,107790.0,107780.0,0.63916674]
[1762143302818,0.01709547,107790.0,107780.0,0.29264674]
[1762143303020,0.01709547,107790.0,107780.0,1.13308674]
[1762143303217,1.01282,107800.0,107790.0,0.092778]
[1762143303413,1.01282,107800.0,107790.0,0.31262636]
[1762143303723,1.01282,107800.0,107790.0,0.29262636]
[1762143303919,1.01282,107800.0,107790.0,0.06668397]
[1762143304227,0.05506,107790.0,107780.0,0.16147057]
[1762143304416,0.05506,107790.0,107780.0,0.85303496]
[1762143304721,0.05506,107790.0,107780.0,0.62107496]
[1762143304920,0.05506,107790.0,107780.0,0.002]
[1762143305128,0.05506,107790.0,107780.0,0.32844]
[1762143305328,0.05606,107790.0,107780.0,0.32644]
[1762143305718,0.05606,107780.0,107770.0,0.29263846]
[1762143305919,0.05606,107770.0,107760.0,0.06668397]
[1762143306125,0.05606,107750.0,107740.0,0.08346341]
[1762143306326,0.05606,107750.0,107740.0,0.40986341]
[1762143306530,0.05606,107750.0,107740.0,0.3264]
[1762143307029,0.05606,107750.0,107740.0,0.4097992]
[1762143307425,0.05606,107750.0,107740.0,0.0923992]
[1762143308031,0.05606,107750.0,107740.0,0.0963992]
[1762143308518,0.05606,107750.0,107740.0,0.009]
[1762143308724,0.05606,107750.0,107740.0,0.0863992]
[1762143308925,0.05606,107750.0,107740.0,0.0953992]
[1762143309126,0.65606,107750.0,107740.0,0.0953992]
[1762143309330,0.65606,107750.0,107740.0,0.0923992]
[1762143309525,0.65606,107750.0,107740.0,0.009]
[1762143309733,0.05306,107740.0,107730.0,0.48601149]
[1762143310235,0.05306,107740.0,107730.0,0.39318199]
[1762143311034,0.05306,107740.0,107730.0,0.39418199]
[1762143311334,0.05306,107740.0,107730.0,0.32748164]
[1762143311532,0.05306,107740.0,107730.0,0.00108164]
[1762143311727,0.78622439,107740.0,107730.0,0.06774425]
[1762143311928,0.78622439,107740.0,107730.0,0.07474425]
[1762143312128,0.65306,107740.0,107730.0,0.07474425]
[1762143312635,0.65306,107740.0,107730.0,0.00808164]
[1762143312931,0.79022439,107740.0,107730.0,0.00108164]
[1762143313134,1.11662439,107740.0,107730.0,1.64e-06]
[1762143313536,0.05606,107720.0,107710.0,0.0833992]
[1762143313729,0.05606,107710.0,107700.0,0.0833992]
[1762143314130,0.05614164,107710.0,107700.0,0.0833992]
[1762143314341,0.05606,107700.0,107690.0,0.5026633]
[1762143315040,0.05606,107700.0,107690.0,0.4097992]
[1762143315433,0.05606,107700.0,107690.0,0.3314]
[1762143315742,0.05606,107700.0,107690.0,0.4157992]
[1762143316038,0.05606,107700.0,107690.0,0.3324]
[1762143317433,0.05606,107700.0,107690.0,0.55842859]
[1762143317434,0.01282,107700.0,107690.0,0.55842859]
[1762143317639,0.03483164,107710.0,107700.0,0.0928556]
[1762143317835,0.01290164,107710.0,107700.0,0.22601999]
[1762143318035,0.01290164,107710.0,107700.0,0.13316439]
[1762143318236,0.01290164,107710.0,107700.0,0.22601999]
[1762143318438,0.05791164,107710.0,107700.0,0.22601999]
[1762143318740,0.05891164,107710.0,107700.0,0.22801999]
[1762143318944,0.05891164,107710.0,107700.0,0.13516439]
[1762143319143,0.05891164,107710.0,107700.0,0.002]
[1762143321237,0.05891164,107710.0,107700.0,0.22801979]
[1762143321442,0.01390164,107710.0,107700.0,0.22801979]
[1762143321837,0.03583164,107710.0,107700.0,0.22801979]
[1762143322040,0.05891164,107710.0,107700.0,0.22801979]
[1762143323142,0.05891164,107710.0,107700.0,0.002]
[1762143324237,0.65891164,107710.0,107700.0,0.002]
[1762143324536,0.04501,107680.0,107670.0,0.3988984]
[1762143324737,0.04501,107680.0,107670.0,0.2962741]
[1762143325748,0.04509164,107680.0,107670.0,0.3927541]
[1762143326135,0.04509164,107680.0,107670.0,0.32644]
[1762143326337,0.04509164,107680.0,107670.0,0.3927541]
[1762143326534,0.04509164,107680.0,107670.0,0.003]
[1762143326736,0.04509164,107680.0,107670.0,0.012]
[1762143327446,0.04434,107670.0,107660.0,0.4856027]
[1762143327637,0.04434,107670.0,107660.0,0.1592027]
[1762143327841,0.04434,107670.0,107660.0,0.3927541]
[1762143328242,0.04434,107670.0,107660.0,0.32644]
[1762143329352,0.04534,107670.0,107660.0,0.32644]
[1762143329744,0.04534,107670.0,107660.0,0.4193295]
[1762143330048,0.001,107670.0,107660.0,0.57249389]
[1762143330344,0.04601,107670.0,107660.0,0.45960439]
[1762143330546,0.04601,107670.0,107660.0,0.32644]
[1762143331343,0.04601,107670.0,107660.0,0.1128896]
[1762143331546,0.04601,107670.0,107660.0,0.4193296]
[1762143331949,0.0236,107670.0,107660.0,0.57249399]
[1762143332147,0.04601,107670.0,107660.0,0.57249399]
[1762143332742,0.001,107670.0,107660.0,0.57249399]
[1762143332946,0.04601,107670.0,107660.0,0.57249399]
[1762143333250,0.05809,107660.0,107650.0,0.10266361]
[1762143333449,0.05809,107660.0,107650.0,0.42910361]
[1762143333643,0.05809,107660.0,107650.0,0.44910361]
[1762143333844,0.05809,107660.0,107650.0,0.582268]
[1762143333845,0.01308,107660.0,107650.0,0.582268]
[1762143334039,0.01308,107660.0,107650.0,0.44910361]
[1762143334243,0.03568,107660.0,107650.0,0.582268]
[1762143334444,0.05809,107660.0,107650.0,0.586268]
[1762143335349,0.05809,107660.0,107650.0,0.5862738]
[1762143335537,0.05809,107660.0,107650.0,0.5872738]
[1762143335738,0.05809,107660.0,107650.0,0.2608338]
[1762143335940,0.05809,107660.0,107650.0,0.5872738]
[1762143336855,0.05817164,107680.0,107670.0,0.0928812]
[1762143337051,0.01316164,107680.0,107670.0,0.55248559]
[1762143337351,8.164e-05,107680.0,107670.0,0.57248559]
[1762143337553,0.01316164,107680.0,107670.0,0.57248559]
[1762143337938,0.04501,107670.0,107660.0,0.0928831]
[1762143338145,0.05817164,107680.0,107670.0,0.0928811]
[1762143338446,0.01516164,107680.0,107670.0,0.1128811]
[1762143338638,0.01516164,107680.0,107670.0,0.22604549]
[1762143338937,0.01516164,107680.0,107670.0,0.24604549]
[1762143339137,0.03776164,107680.0,107670.0,0.24604549]
[1762143339336,0.03776164,107680.0,107670.0,0.47824549]
[1762143339337,0.01516164,107680.0,107670.0,0.47824549]
[1762143339648,0.01416164,107680.0,107670.0,0.24604549]
[1762143339843,0.01416164,107680.0,107670.0,0.24704549]
[1762143340043,0.00108164,107680.0,107670.0,0.24704549]
[1762143340243,0.00108164,107680.0,107670.0,0.26704549]
[1762143340551,0.00108164,107680.0,107670.0,0.49924549]
[1762143340749,0.00108164,107680.0,107670.0,0.50224549]
[1762143340948,0.00108164,107680.0,107670.0,0.96868549]
[1762143341349,0.03676164,107680.0,107670.0,0.57648549]
[1762143341548,0.03576164,107680.0,107670.0,0.57648549]
[1762143341756,0.05817164,107680.0,107670.0,0.46324549]
[1762143342048,0.05817164,107680.0,107670.0,0.60748549]
[1762143342259,8.164e-05,107680.0,107670.0,0.84068549]
[1762143342446,8.164e-05,107680.0,107670.0,0.90699959]
[1762143342954,8.164e-05,107680.0,107670.0,0.90599959]
[1762143343253,0.01416164,107680.0,107670.0,0.90199959]
[1762143343448,0.00108164,107680.0,107670.0,0.90199959]
[1762143343853,8.164e-05,107680.0,107670.0,0.7698352]
[1762143344051,8.164e-05,107680.0,107670.0,0.85299959]
[1762143344354,8.164e-05,107680.0,107670.0,0.97110595]
[1762143344540,0.01316164,107680.0,107670.0,0.94110595]
[1762143344744,0.01316164,107680.0,107670.0,0.70890595]
[1762143345441,0.05815164,107680.0,107670.0,0.0683141]
[1762143345743,0.05815164,107680.0,107670.0,0.4412812]
[1762143346054,0.05815164,107680.0,107670.0,0.4712812]
[1762143346247,0.03576164,107680.0,107670.0,0.4712812]
[1762143346451,0.01316164,107680.0,107670.0,0.67255195]
[1762143346646,0.15055424,107680.0,107670.0,0.001]
[1762143346847,0.05719,107660.0,107650.0,0.06673235]
[1762143347246,0.1079526,107680.0,107650.0,0.06673235]
[1762143347451,0.85841681,107720.0,107650.0,0.06673235]
[1762143347452,0.0576456,107720.0,107710.0,0.0452]
[1762143347755,0.05719,107740.0,107730.0,0.0452]
[1762143347944,0.05719,107720.0,107710.0,0.3716]
[1762143348250,0.02213,107710.0,107700.0,0.04997222]
[1762143348457,0.04452,107710.0,107700.0,0.09517222]
[1762143348650,0.04452,107710.0,107700.0,0.0452]
[1762143349351,0.04452,107710.0,107700.0,0.1380553]
[1762143349549,0.0368,107720.0,107710.0,0.0452]
[1762143349852,0.05919,107720.0,107710.0,0.0452]
[1762143350054,0.05819,107720.0,107710.0,0.09517222]
[1762143350347,0.05819,107720.0,107710.0,0.18801842]
[1762143350547,0.05719,107720.0,107710.0,0.1380462]
[1762143350851,0.05719,107720.0,107710.0,0.09517089]
[1762143351056,0.05719,107720.0,107710.0,0.18801799]
[1762143351245,0.06019,107720.0,107710.0,0.18801799]
[1762143351443,0.003,107720.0,107710.0,0.1380471]
[1762143351739,0.005,107720.0,107710.0,0.1380471]
[1762143351943,0.005,107720.0,107710.0,0.1580471]
[1762143352140,0.005,107720.0,107710.0,0.1380471]
[1762143352347,0.005,107720.0,107710.0,0.1580471]
[1762143352948,0.08596,107730.0,107720.0,0.1380382]
[1762143353154,0.01267,107740.0,107730.0,0.1380296]
[1762143353352,0.05719,107740.0,107730.0,0.0452]
[1762143353549,0.04452,107730.0,107720.0,0.46503107]
[1762143353759,0.02213,107730.0,107720.0,0.48503107]
[1762143354054,0.05719,107740.0,107730.0,0.1380301]
[1762143354251,0.05719,107740.0,107730.0,0.0951332]
[1762143354455,0.04452,107730.0,107720.0,0.37219287]
[1762143354656,0.04652,107730.0,107720.0,0.37219287]
[1762143355057,0.04852,107730.0,107720.0,0.37219287]
[1762143355251,0.004,107730.0,107720.0,0.46503117]
[1762143355461,0.002,107730.0,107720.0,0.43509797]
[1762143356364,0.002,107730.0,107720.0,0.41509797]
[1762143356656,0.002,107730.0,107720.0,0.46498465]
[1762143356852,0.002,107730.0,107720.0,0.48498465]
[1762143357061,0.05719,107740.0,107730.0,0.1380273]
[1762143357249,0.05719,107740.0,107730.0,0.33929805]
[1762143357456,0.0348,107740.0,107730.0,0.33929805]
[1762143357657,0.02213,107740.0,107730.0,0.33929805]
[1762143357857,0.02213,107740.0,107730.0,0.31628805]
[1762143358058,0.02213,107740.0,107730.0,0.38918473]
[1762143358450,0.0348,107740.0,107730.0,0.29635743]
[1762143358647,0.05719,107740.0,107730.0,0.38918713]
[1762143359367,0.05719,107740.0,107730.0,0.24647075]
[1762143359857,0.05719,107740.0,107730.0,0.20127075]
[1762143360456,0.04452,107730.0,107720.0,0.04988668]
[1762143360756,0.05719,107720.0,107710.0,0.25115743]
[1762143361156,0.38651,107720.0,107710.0,0.29635743]
[1762143361360,0.38647,107720.0,107710.0,0.38920703]
[1762143361560,0.05719,107720.0,107710.0,0.38920703]
[1762143361950,0.05719,107720.0,107710.0,0.29735743]
[1762143362158,0.25359,107720.0,107710.0,0.29735743]
[1762143362356,0.38647,107720.0,107710.0,0.30035743]
[1762143363166,0.38643,107720.0,107710.0,0.30035743]
[1762143363370,0.05719,107720.0,107710.0,0.39320703]
[1762143363562,0.38635,107720.0,107710.0,0.39320703]
[1762143363757,0.38635,107720.0,107710.0,0.30035743]
[1762143363959,0.38635,107720.0,107710.0,0.25515743]
[1762143364168,0.98635,107720.0,107710.0,0.05388668]
[1762143364766,0.04452,107710.0,107700.0,0.04988668]
[1762143364964,0.04452,107710.0,107690.0,0.25115743]
[1762143365165,0.05719,107700.0,107690.0,0.25115743]
[1762143365564,0.98627,107700.0,107690.0,0.29635743]
[1762143365760,0.99615042,107700.0,107690.0,0.20127075]
[1762143366768,0.04452,107690.0,107680.0,0.06665766]
[1762143367858,0.04452,107690.0,107670.0,0.44421161]
[1762143368063,0.38619,107680.0,107670.0,0.38382241]
[1762143368370,0.05719,107680.0,107670.0,0.33935475]
[1762143368566,0.14339,107680.0,107670.0,0.33935475]
[1762143368962,0.14339,107680.0,107670.0,0.24647075]
[1762143369771,0.14339,107680.0,107670.0,0.32986995]
[1762143369970,0.14439,107680.0,107670.0,0.32986995]
[1762143370162,0.05819,107680.0,107670.0,0.31304286]
[1762143370359,0.38699,107680.0,107670.0,0.31304286]
[1762143370874,0.05819,107680.0,107670.0,0.31304286]
[1762143371077,0.38695,107680.0,107670.0,0.31304286]
[1762143371771,0.05819,107680.0,107670.0,0.31304286]
[1762143371964,0.38687,107680.0,107670.0,0.31304286]
[1762143373072,0.05819,107680.0,107670.0,0.31304286]
[1762143373382,0.13767,107680.0,107670.0,0.25117057]
[1762143377965,0.96987,107680.0,107670.0,0.04989982]
[1762143378182,0.059,107660.0,107650.0,0.29001755]
[1762143378480,0.3872,107660.0,107650.0,0.31131755]
[1762143379485,0.3872,107660.0,107650.0,0.31631755]
[1762143380282,0.3872,107660.0,107650.0,0.24974544]
[1762143381179,0.3872,107660.0,107650.0,0.04847469]
[1762143381180,0.387,107660.0,107650.0,0.04847469]
[1762143381479,0.387,107660.0,107650.0,0.24974544]
[1762143383572,0.387,107660.0,107650.0,0.31631755]
[1762143383784,0.387,107660.0,107650.0,0.0716468]
[1762143383981,0.387,107660.0,107650.0,0.00507469]
[1762143384283,0.99679505,107660.0,107650.0,0.00507469]
[1762143385390,0.99679505,107660.0,107640.0,0.20127075]
[1762143385677,0.05582,107640.0,107630.0,0.28938286]
[1762143385887,0.38358,107640.0,107630.0,0.31058286]
[1762143386386,0.38365469,107640.0,107630.0,0.31058286]
[1762143386684,0.37865469,107640.0,107630.0,0.31058286]
[1762143386884,0.37865469,107640.0,107630.0,0.31258286]
[1762143387880,0.37865469,107640.0,107630.0,0.29138286]
[1762143388079,0.37865469,107640.0,107630.0,0.22981075]
[1762143388379,0.37865469,107640.0,107630.0,0.31758286]
[1762143388579,0.37865469,107640.0,107630.0,0.41050016]
[1762143388882,7.469e-05,107640.0,107630.0,0.40550016]
[1762143389277,0.05632,107660.0,107650.0,0.1356401]
[1762143389483,0.2804,107660.0,107650.0,0.24401075]
[1762143389780,0.38392,107660.0,107650.0,0.24401075]
[1762143391077,0.38792,107660.0,107650.0,0.24401075]
[1762143391278,0.004,107660.0,107650.0,0.33691075]
[1762143391479,0.33148,107660.0,107650.0,0.24401075]
[1762143391785,0.33148,107660.0,107650.0,0.33691075]
[1762143392288,0.004,107660.0,107650.0,0.33691075]
[1762143392481,0.05507,107680.0,107670.0,0.04274]
[1762143392682,0.05507,107680.0,107670.0,0.24401075]
[1762143392890,0.38255,107680.0,107670.0,0.24401075]
[1762143393386,0.39251691,107680.0,107670.0,0.24401075]
[1762143393787,0.0424,107660.0,107650.0,0.24401075]
[1762143393987,0.36984,107660.0,107650.0,0.24401075]
[1762143394282,0.0434,107660.0,107650.0,0.310517]
[1762143394481,0.38426,107660.0,107650.0,0.310517]
[1762143394882,0.38726,107660.0,107650.0,0.310517]
[1762143395284,0.05982,107660.0,107650.0,0.310517]
[1762143395486,0.004,107660.0,107650.0,0.310517]
[1762143395684,0.33132,107660.0,107650.0,0.42031015]
[1762143395891,0.00996691,107680.0,107670.0,0.04274]
[1762143396092,0.34843,107680.0,107670.0,0.24401075]
[1762143396390,0.39286725,107680.0,107670.0,0.24401075]
[1762143397095,0.39278725,107680.0,107670.0,0.24401075]
[1762143397391,0.0424,107680.0,107670.0,0.33689325]
[1762143397583,0.05507,107700.0,107690.0,0.04274]
[1762143397779,0.38235,107700.0,107690.0,0.04274]
[1762143397986,0.05582,107680.0,107670.0,0.31063887]
[1762143398288,0.3831,107680.0,107670.0,0.10936812]
[1762143398493,0.0424,107670.0,107660.0,0.10936812]
[1762143399688,0.0424,107670.0,107660.0,0.04274]
[1762143400190,0.0424,107670.0,107660.0,0.10944619]
[1762143400385,0.36956,107670.0,107660.0,0.10945278]
[1762143400896,0.0424,107670.0,107660.0,0.10945278]
[1762143401194,0.36952,107670.0,107660.0,0.10945278]
[1762143401391,0.36952,107670.0,107660.0,0.04274]
[1762143402295,0.0424,107670.0,107660.0,0.04274]
[1762143402499,0.0424,107670.0,107660.0,0.1356311]
[1762143402697,0.05582,107680.0,107670.0,0.04274]
[1762143403000,0.05582,107680.0,107670.0,0.31073105]
[1762143403001,0.38282,107680.0,107670.0,0.31073105]
[1762143403384,0.05582,107680.0,107670.0,0.31073105]
[1762143403588,0.38278,107680.0,107670.0,0.31073105]
[1762143403989,0.38778,107680.0,107670.0,0.31073105]
[1762143404400,0.38778,107680.0,107670.0,0.24292176]
[1762143404593,0.05782,107680.0,107670.0,0.24292176]
[1762143404895,0.38478,107680.0,107670.0,0.24292176]
[1762143405101,0.05782,107680.0,107670.0,0.24292176]
[1762143405285,0.3847,107680.0,107670.0,0.24292176]
[1762143405489,0.05782,107680.0,107670.0,0.24292176]
[1762143405691,0.38466,107680.0,107670.0,0.24292176]
[1762143406297,0.05782,107680.0,107670.0,0.24292176]
[1762143406495,0.38466,107680.0,107670.0,0.24292176]
[1762143407003,0.46081,107680.0,107670.0,0.24292176]
[1762143407392,0.46077,107680.0,107670.0,0.24292176]
[1762143408689,0.46077,107680.0,107670.0,0.17620146]
[1762143408894,0.13397,107680.0,107670.0,0.17620146]
[1762143409094,0.46077,107680.0,107670.0,0.24292176]
[1762143409402,0.46077,107680.0,107670.0,0.1094603]
[1762143409700,0.46077,107680.0,107670.0,0.17620146]
[1762143411597,0.46077,107680.0,107660.0,0.20018176]
[1762143411793,0.38599,107670.0,107660.0,0.24572176]
[1762143412797,0.38599,107670.0,107660.0,0.24672176]
[1762143413503,0.38599,107670.0,107660.0,0.24572176]
[1762143413803,0.38599,107670.0,107660.0,0.24672176]
[1762143414804,0.38599,107670.0,107660.0,0.0677203]
[1762143415206,0.05919,107660.0,107650.0,0.35530116]
[1762143415904,0.04409049,107660.0,107650.0,0.35530116]
[1762143416102,0.04409049,107660.0,107650.0,0.17900146]
[1762143416405,0.04409049,107660.0,107650.0,0.40045924]
[1762143416609,0.13602,107680.0,107670.0,0.05862]
[1762143416797,0.46282,107680.0,107670.0,0.24573343]
[1762143418105,0.46282,107680.0,107670.0,0.11227197]
[1762143418414,0.46782,107680.0,107670.0,0.11227197]
[1762143419312,0.46782,107680.0,107670.0,0.06673197]
[1762143420514,1.06782,107680.0,107670.0,0.06673197]
[1762143420711,0.05142,107670.0,107650.0,0.19875225]
[1762143420905,0.38599,107660.0,107650.0,0.08341497]
[1762143421310,0.04715,107640.0,107630.0,0.11533728]
[1762143421515,0.37395,107640.0,107630.0,0.11533728]
[1762143421716,0.37295,107640.0,107630.0,0.11533728]
[1762143422417,0.37295,107640.0,107630.0,0.02298]
[1762143422603,0.37295,107640.0,107630.0,0.004]
[1762143422800,0.36904,107640.0,107630.0,0.04954]
[1762143423009,0.02062,107640.0,107630.0,0.27592176]
[1762143423306,0.00497,107670.0,107630.0,0.27592176]
[1762143423609,0.04124,107650.0,107640.0,0.27191316]
[1762143424016,0.04124,107650.0,107640.0,0.17900146]
[1762143424504,0.04124,107640.0,107630.0,0.16987728]
[1762143424709,0.00497,107670.0,107630.0,0.39625904]
[1762143424911,0.04124,107650.0,107640.0,0.27191316]
[1762143425106,0.04124,107670.0,107660.0,0.0362]
[1762143425306,0.36804,107670.0,107660.0,0.0362]
[1762143425609,0.04124,107660.0,107650.0,0.17900146]
[1762143425813,0.04124,107660.0,107650.0,0.04554]
[1762143426013,0.36804,107660.0,107650.0,0.04554]
[1762143426200,0.04124,107660.0,107650.0,0.04554]
[1762143426514,0.32944,107660.0,107650.0,0.04554]
[1762143426708,0.36804,107660.0,107650.0,0.04554]
[1762143426901,0.08112,107680.0,107650.0,0.27190456]
[1762143427107,0.12236,107680.0,107670.0,0.02298]
[1762143427312,0.44916,107680.0,107670.0,0.02298]
[1762143427811,0.04124,107660.0,107650.0,0.27190106]
[1762143428115,0.02062,107660.0,107650.0,0.17900146]
[1762143428818,0.04124,107660.0,107650.0,0.17900146]
[1762143429015,0.36908,107660.0,107650.0,0.04554]
[1762143429314,0.36908,107660.0,107650.0,0.02298]
[1762143429617,0.36908,107660.0,107650.0,0.04554]
[1762143430316,0.36908,107660.0,107650.0,0.12899729]
[1762143430518,0.36908,107660.0,107650.0,0.04554]
[1762143431408,0.36908,107660.0,107650.0,0.12899729]
[1762143431905,0.04224,107660.0,107650.0,0.12899729]
[1762143432105,0.001,107660.0,107650.0,0.35535885]
[1762143432314,0.16876,107660.0,107650.0,0.35535885]
[1762143432715,0.001,107660.0,107650.0,0.35535885]
[1762143434019,0.1927,107670.0,107660.0,0.04554]
[1762143434212,0.1927,107670.0,107660.0,0.24575486]
[1762143434426,0.02062,107670.0,107660.0,0.24575486]
[1762143434922,0.07615,107680.0,107660.0,0.24575486]
[1762143434923,0.44419,107680.0,107670.0,0.04478]
[1762143435221,0.11739,107680.0,107670.0,0.11153622]
[1762143435518,0.44419,107680.0,107670.0,0.11153622]
[1762143436420,0.44619,107680.0,107670.0,0.11153622]
[1762143436719,0.04124,107670.0,107660.0,0.02311]
[1762143436912,0.04124,107660.0,107650.0,0.11166622]
[1762143437107,0.36804,107660.0,107650.0,0.11166622]
[1762143438221,0.36804,107660.0,107650.0,0.24812768]
[1762143438621,0.36804,107660.0,107650.0,0.11566622]
[1762143439524,0.36804,107660.0,107650.0,0.11166622]
[1762143440315,0.37004,107660.0,107650.0,0.11166622]
[1762143440526,0.37304,107660.0,107650.0,0.11166622]
[1762143441025,0.37304,107660.0,107650.0,0.04491]
[1762143441823,0.37304,107660.0,107650.0,0.05768]
[1762143442025,0.35242,107660.0,107650.0,0.19114146]
[1762143442223,0.02562,107660.0,107650.0,0.28404206]